bitfinex-derivatives/quotes_ETHF0:USTF0_20240904
["timestamp","ask_amount","ask_price","bid_price","bid_amount"]
[1725453952066,0.41456,2412.3,2412.2,0.42079813]
[1725453952371,0.41456,2412.3,2412.2,0.00621813]
[1725453952559,1.45096,2412.3,2412.2,0.00621813]
[1725453952765,8.67104578,2412.3,2412.2,0.00621813]
[1725453953163,8.46656,2412.3,2412.2,0.00621813]
[1725453956561,0.41463,2411.9,2411.8,3.2078]
[1725453956860,0.41463,2411.9,2411.8,3.62244]
[1725453957267,0.41463,2411.9,2411.8,3.2078]
[1725453957571,0.78412,2412.0,2411.8,3.62244]
[1725453957770,3.2078,2411.9,2411.6,0.36721813]
[1725453957960,0.41466,2411.8,2411.6,0.78188813]
[1725453958165,0.41466,2411.7,2411.6,0.78188813]
[1725453959067,0.41466,2411.7,2411.6,0.00621813]
[1725453959068,1.45132,2411.7,2411.6,0.00621813]
[1725453959268,2.48798,2411.7,2411.6,0.00621813]
[1725453959468,1.03683,2411.4,2410.8,3.9863]
[1725453959767,1.03683,2411.4,2410.8,0.7785]
[1725453959768,0.4148,2410.9,2410.8,0.7785]
[1725453959965,1.03693,2411.1,2410.8,0.7785]
[1725453959966,3.2078,2411.1,2410.8,0.7785]
[1725453960159,4.4899,2411.3,2411.2,0.41475]
[1725453960364,4.117,2411.3,2411.2,0.41475]
[1725453961172,4.117,2411.3,2411.1,0.41475]
[1725453961470,4.117,2411.3,2411.2,0.41475]
[1725453961861,4.117,2411.3,2411.0,0.00621813]
[1725453962160,0.41476,2411.1,2411.0,0.00621813]
[1725453962768,4.4995,2411.3,2411.0,0.42099813]
[1725453962769,0.41476,2411.2,2411.0,0.42099813]
[1725453962967,4.4995,2411.3,2411.0,0.00621813]
[1725453962968,0.41476,2411.1,2411.0,0.00621813]
[1725453963164,0.41476,2411.2,2411.0,0.00621813]
[1725453963363,0.41476,2411.1,2411.0,0.00621813]
[1725453963776,4.91424,2411.3,2411.1,0.41476]
[1725453963975,4.117,2411.3,2411.0,0.00621813]
[1725453964179,0.42091813,2411.5,2411.3,0.41472]
[1725453964480,0.00621813,2411.5,2411.2,0.41473]
[1725453964679,0.00621813,2411.5,2411.0,0.00621813]
[1725453964867,0.42091813,2411.5,2411.3,0.41472]
[1725453965070,0.42091813,2411.5,2411.2,0.41474]
[1725453965272,0.00621813,2411.5,2411.3,0.41473]
[1725453965468,0.42091813,2411.5,2411.3,0.41473]
[1725453967279,0.00621813,2411.5,2411.3,0.41473]
[1725453967477,0.00621813,2411.5,2411.4,0.41471]
[1725453968675,0.00621813,2411.5,2411.4,3.28471]
[1725453968875,0.00621813,2411.5,2411.4,0.41471]
[1725453969176,0.00621813,2411.5,2411.3,0.3894]
[1725453969678,0.00621813,2411.5,2411.3,0.80412]
[1725453969679,0.42091813,2411.5,2411.3,0.80412]
[1725453969975,0.42091813,2411.5,2411.4,0.41471]
[1725453970179,0.42091813,2411.5,2411.3,0.80412]
[1725453970571,0.42091813,2411.5,2411.4,0.41471]
[1725453970766,0.42091813,2411.5,2411.3,0.80412]
[1725453971374,0.42091813,2411.5,2411.4,0.41471]
[1725453971375,0.00621813,2411.5,2411.4,0.41471]
[1725453971580,0.42091813,2411.5,2411.3,0.80412]
[1725453971881,0.42091813,2411.5,2411.3,0.80411]
[1725453972078,0.41471,2411.4,2411.0,0.00621813]
[1725453972277,3.2078,2411.4,2411.0,0.00621813]
[1725453972676,0.00621813,2411.5,2411.1,1.03692]
[1725453972874,0.42091813,2411.5,2411.3,0.41472]
[1725453973079,3.62871813,2411.5,2411.3,0.41472]
[1725453973278,3.62871813,2411.5,2411.2,0.41474]
[1725453973279,0.41471,2411.4,2411.2,0.41474]
[1725453973781,0.41471,2411.4,2411.3,0.41473]
[1725453973782,0.41472,2411.4,2411.3,0.41473]
[1725453974084,0.41472,2411.4,2411.0,0.00621813]
[1725453974471,0.41472,2411.4,2411.3,0.41473]
[1725453974782,0.41473,2411.3,2411.2,0.41473]
[1725453974975,4.25076813,2411.5,2411.3,0.41473]
[1725453974976,0.41472,2411.4,2411.3,0.41473]
[1725453975380,3.21401813,2411.5,2411.4,0.41471]
[1725453975381,3.62872813,2411.5,2411.4,0.41471]
[1725453975581,3.62872813,2411.5,2411.3,0.41472]
[1725453975784,0.00621813,2411.5,2411.1,3.90692]
[1725453975978,0.42091813,2411.5,2411.4,0.41471]
[1725453976884,0.00621813,2411.5,2411.4,0.41471]
[1725453977275,0.42091813,2411.5,2411.4,0.41471]
[1725453977476,0.00621813,2411.5,2411.4,0.41471]
[1725453977978,0.42091813,2411.5,2411.3,0.41472]
[1725453978179,0.42091813,2411.5,2411.4,0.41471]
[1725453978687,0.00621813,2411.5,2411.4,0.41471]
[1725453979280,0.00621813,2411.5,2411.4,5.5987]
[1725453979482,0.00621813,2411.5,2411.4,2.48829]
[1725453979701,0.00621813,2411.5,2411.4,2.5996]
[1725453980892,0.00621813,2411.5,2411.4,6.7468]
[1725453981187,0.00621813,2411.5,2411.4,9.6168]
[1725453982289,0.00621813,2411.5,2411.4,15.6168]
[1725453983394,4.117,2411.9,2411.4,15.20209]
[1725453983685,4.117,2411.9,2411.8,0.41464]
[1725453983987,3.2078,2411.9,2411.2,1.03687]
[1725453984188,3.62246,2411.7,2411.3,1.42273]
[1725453984392,3.62246,2411.7,2411.5,0.41469]
[1725453984393,0.41468,2411.6,2411.5,0.41469]
[1725453984694,3.21401813,2411.7,2411.6,0.41468]
[1725453985084,3.62867813,2411.7,2411.6,0.41468]
[1725453985295,3.21401813,2411.7,2411.6,0.41468]
[1725453985591,0.00621813,2411.7,2411.6,3.28468]
[1725453986293,0.209,2412.4,2412.3,0.41456]
[1725453986484,0.41454,2412.5,2412.3,0.41456]
[1725453986986,0.41454,2412.4,2412.3,0.41456]
[1725453987289,0.41454,2412.4,2412.1,2.87]
[1725453987290,0.41457,2412.3,2412.1,0.42080813]
[1725453987484,3.2078,2412.5,2412.1,0.42080813]
[1725453987485,4.24413,2412.5,2412.1,0.42080813]
[1725453987690,3.62238,2412.2,2412.1,0.00621813]
[1725453988187,1.0365,2412.1,2411.7,0.41465]
[1725453988387,1.0365,2412.1,2411.6,0.3755]
[1725453988388,3.2078,2411.8,2411.6,0.3755]
[1725453988590,3.2078,2411.8,2411.7,0.41466]
[1725453988786,3.62244,2411.8,2411.6,0.79017]
[1725453989188,3.62244,2411.8,2411.7,0.41466]
[1725453989381,3.2078,2411.8,2411.6,0.3755]
[1725453990286,4.0093,2412.1,2411.7,2.87]
[1725453990593,3.62238,2412.2,2412.0,0.4146]
[1725453990794,0.41458,2412.2,2412.0,0.4146]
[1725453990988,3.62238,2412.2,2412.0,0.4146]
[1725453991298,3.41853853,2412.2,2411.7,3.28465]
[1725453991593,0.41462,2412.0,2411.8,0.41464]
[1725453991793,0.41461,2412.1,2411.9,0.41463]
[1725453992091,5.88978,2412.4,2412.2,0.41457]
[1725453992092,5.26795,2412.4,2412.2,0.41457]
[1725453992293,5.26795,2412.4,2412.3,0.41456]
[1725453992294,0.3813,2412.4,2412.3,0.41456]
[1725453992497,0.00621813,2412.6,2412.5,0.41452]
[1725453992692,0.42072813,2412.6,2412.3,2.87]
[1725453992886,0.42072813,2412.6,2412.4,0.41453]
[1725453995092,0.41452,2412.5,2412.3,0.41455]
[1725453995501,3.62232,2412.5,2412.3,0.41455]
[1725453995796,3.2078,2412.5,2411.9,6.4397]
[1725453995984,0.41458,2412.2,2412.0,0.4146]
[1725453996189,1.03636,2412.4,2411.9,3.5697]
[1725453996190,0.41457,2412.3,2412.1,0.41459]
[1725453996992,1.03637,2412.4,2412.0,0.4146]
[1725453997200,0.3561,2412.2,2411.9,3.2078]
[1725453997389,0.78969,2412.1,2412.0,0.41461]
[1725453997591,0.3751,2412.1,2411.9,3.2078]
[1725453997786,0.77069,2412.2,2412.0,0.41461]
[1725453997994,0.41459,2412.1,2412.0,0.41461]
[1725453998292,0.3561,2412.2,2411.9,3.2078]
[1725453998597,0.3561,2412.2,2412.0,0.4146]
[1725453998598,0.77068,2412.2,2412.0,0.4146]
[1725453998994,0.3561,2412.2,2412.1,0.41459]
[1725453999696,3.2078,2412.5,2412.4,0.41454]
[1725453999898,3.2078,2412.5,2412.3,0.41455]
[1725453999899,0.41454,2412.5,2412.3,0.41455]
[1725454000399,0.41453,2412.5,2412.3,0.41455]
[1725454000602,0.41454,2412.4,2412.3,0.41455]
[1725454000995,0.41454,2412.4,2412.1,0.41459]
[1725454000996,0.41456,2412.3,2412.1,0.41459]
[1725454001199,0.41456,2412.3,2412.2,0.41458]
[1725454001801,0.41456,2412.3,2411.9,3.5896]
[1725454002095,0.41458,2412.2,2411.9,3.5896]
[1725454002295,0.41458,2412.2,2412.0,0.4146]
[1725454002495,0.41457,2412.3,2412.2,0.41458]
[1725454002695,0.3582,2412.4,2412.2,0.41458]
[1725454002696,0.41455,2412.4,2412.2,0.41458]
[1725454003098,3.62233,2412.5,2412.3,0.41455]
[1725454003699,0.41454,2412.4,2412.3,0.41455]
[1725454003902,0.41452,2412.5,2412.4,0.41453]
[1725454004202,0.00621813,2412.6,2412.4,0.41453]
[1725454004603,0.42073813,2412.6,2412.4,0.41453]
[1725454004798,0.41452,2412.5,2412.4,0.41453]
[1725454006500,0.00621813,2412.6,2412.4,0.41454]
[1725454006806,0.42073813,2412.6,2412.5,0.41452]
[1725454007201,0.41452,2412.5,2412.4,0.41453]
[1725454007404,0.42073813,2412.6,2412.4,0.41453]
[1725454007699,0.41454,2412.4,2412.3,0.76715]
[1725454007896,0.41454,2412.4,2412.3,0.3526]
[1725454008094,0.4146,2412.1,2412.0,0.4146]
[1725454008502,1.4006,2412.3,2412.1,0.41459]
[1725454008503,0.3884,2412.2,2412.1,0.41459]
[1725454008900,0.80298,2412.2,2412.1,0.41459]
[1725454010106,0.41459,2412.1,2412.0,0.41459]
[1725454010299,3.2078,2412.1,2411.6,2.87]
[1725454010506,0.41463,2412.0,2411.9,0.41462]
[1725454011006,3.2078,2412.1,2411.7,1.03665]
[1725454011206,0.41461,2412.0,2411.9,0.41461]
[1725454011402,0.41461,2412.1,2412.0,0.4146]
[1725454011711,4.01079,2412.2,2412.1,0.41459]
[1725454012500,3.5962,2412.2,2412.1,0.41459]
[1725454013004,4.01078,2412.2,2412.1,0.41459]
[1725454013211,0.80298,2412.2,2412.1,0.41459]
[1725454013407,0.41455,2412.4,2412.3,0.41454]
[1725454013605,3.62235,2412.4,2412.3,0.41454]
[1725454014206,0.41457,2412.3,2412.2,0.41456]
[1725454014508,0.41457,2412.3,2412.1,0.41458]
[1725454014509,0.41458,2412.2,2412.1,0.41458]
[1725454015412,0.41457,2412.3,2411.9,1.03657]
[1725454015413,0.41457,2412.3,2412.2,0.41456]
[1725454015814,4.56017,2412.3,2412.2,0.41456]
[1725454016211,4.1456,2412.3,2412.2,0.41456]
[1725454016514,4.1456,2412.3,2412.2,0.41457]
[1725454016515,0.41458,2412.3,2412.2,0.41457]
[1725454016706,0.4146,2412.2,2412.1,0.41458]
[1725454017106,0.4146,2412.2,2411.8,7.85991]
[1725454017107,0.41457,2412.3,2412.2,0.41456]
[1725454018206,0.41459,2412.2,2412.1,0.41458]
[1725454019207,0.41457,2412.3,2412.2,0.41456]
[1725454020212,4.24416,2412.4,2412.1,0.41458]
[1725454020406,0.41458,2412.2,2412.1,0.41458]
[1725454021517,3.64753698,2412.4,2412.3,0.41456]
[1725454021711,0.41455,2412.4,2412.3,0.41456]
[1725454022612,3.58778698,2412.5,2412.1,1.03648]
[1725454022814,0.41455,2412.4,2412.3,0.41454]
[1725454023114,0.41459,2412.2,2412.1,0.41458]
[1725454023515,0.41457,2412.3,2412.2,0.41456]
[1725454024119,0.41459,2412.2,2412.1,0.41458]
[1725454024725,10.1456,2412.2,2411.4,3.2078]
[1725454025018,0.41464,2411.9,2411.8,0.41463]
[1725454025217,6.85540698,2412.0,2411.9,0.41463]
[1725454025416,6.85540698,2412.0,2411.9,1.4512]
[1725454025417,3.23298698,2412.0,2411.9,1.4512]
[1725454025720,3.64757698,2412.1,2412.0,0.41461]
[1725454025919,3.67255561,2412.1,2412.0,0.41461]
[1725454026315,0.41459,2412.1,2412.0,0.41461]
[1725454026510,3.67292962,2412.1,2412.0,0.41461]
[1725454026912,0.41459,2412.1,2412.0,0.41461]
[1725454027218,0.41461,2412.0,2411.9,0.41461]
[1725454027419,3.67323017,2412.0,2411.9,0.41461]
[1725454028318,3.25862017,2412.0,2411.9,0.41461]
[1725454028821,3.25862017,2412.0,2411.9,1.45118]
[1725454029022,4.19849217,2412.2,2412.0,0.41461]
[1725454029023,3.25862017,2412.2,2412.0,0.41461]
[1725454029222,3.25862017,2412.2,2412.1,0.41459]
[1725454029632,3.25862017,2412.3,2412.2,0.41458]
[1725454031318,3.25862017,2412.4,2412.3,0.41456]
[1725454031521,3.67315017,2412.5,2412.3,0.41456]
[1725454032117,3.25862017,2412.5,2412.4,0.41454]
[1725454032434,0.41452,2412.5,2412.4,0.41454]
[1725454032624,0.41452,2412.5,2412.3,0.41456]
[1725454032919,3.6793583,2412.6,2412.4,0.41453]
[1725454033319,0.41452,2412.5,2412.3,0.41455]
[1725454033523,3.67314017,2412.5,2412.4,0.41454]
[1725454033731,0.41452,2412.5,2412.4,0.41454]
[1725454034023,3.25862017,2412.5,2412.2,0.3699]
[1725454034226,0.41458,2412.2,2412.0,0.41459]
[1725454034822,4.02591017,2412.2,2412.0,0.4146]
[1725454035023,4.02591017,2412.2,2412.1,0.41459]
[1725454035222,4.02591017,2412.2,2412.0,0.4146]
[1725454035525,3.25862017,2412.2,2412.1,0.41459]
[1725454036117,3.67320017,2412.2,2411.8,0.3746]
[1725454036318,3.67320017,2412.2,2411.9,0.55176603]
[1725454036516,3.67320017,2412.2,2412.1,0.41459]
[1725454036921,0.41459,2412.1,2412.0,0.4146]
[1725454037121,0.41459,2412.2,2412.0,0.4146]
[1725454037322,0.41459,2412.2,2412.1,0.41459]
[1725454037623,0.41459,2412.2,2411.8,0.3746]
[1725454037822,0.41459,2412.2,2412.0,0.41459]
[1725454038425,0.41459,2412.1,2412.0,0.41459]
[1725454038926,0.41459,2412.2,2412.0,0.41459]
[1725454039313,3.78390217,2412.4,2411.8,0.3746]
[1725454039515,4.19845217,2412.4,2411.9,0.96640355]
[1725454039731,4.19845217,2412.4,2412.3,0.41456]
[1725454039922,0.41456,2412.3,2412.2,0.41456]
[1725454041221,7.40625217,2412.4,2412.3,0.41456]
[1725454041427,3.78390217,2412.4,2412.3,0.41456]
[1725454041928,4.19844217,2412.4,2412.3,0.41456]
[1725454043123,3.67483138,2412.4,2412.3,0.41456]
[1725454043323,0.41457,2412.3,2412.2,0.41456]
[1725454043633,0.41456,2412.3,2412.2,0.41456]
[1725454043931,6.88264138,2412.4,2412.3,0.41456]
[1725454045329,6.88263138,2412.4,2412.3,0.41456]
[1725454047120,3.26029138,2412.4,2412.3,0.41456]
[1725454047526,3.67483138,2412.4,2412.3,0.41456]
[1725454048230,3.26029138,2412.5,2412.4,0.41454]
[1725454048434,3.68102951,2412.6,2412.5,0.41452]
[1725454048836,0.00621813,2412.6,2412.5,0.41452]
[1725454049632,0.42072813,2412.6,2412.5,0.41452]
[1725454050129,3.68101951,2412.6,2412.5,0.41452]
[1725454050328,3.26650951,2412.6,2412.5,1.45084]
[1725454050531,0.00621813,2412.6,2412.5,1.45084]
[1725454052433,3.26029138,2413.0,2412.9,0.41445]
[1725454052640,0.41443,2413.1,2413.0,0.41444]
[1725454052941,0.41445,2412.9,2412.8,1.16126]
[1725454053131,0.41445,2412.9,2412.8,0.41446]
[1725454053830,4.67770138,2413.0,2412.6,0.00621813]
[1725454054032,0.41449,2412.7,2412.6,0.42072813]
[1725454054233,0.41449,2412.7,2412.6,0.00621813]
[1725454055334,1.45072,2412.7,2412.6,0.00621813]
[1725454055926,5.59552,2412.7,2412.6,0.00621813]
[1725454056143,8.85581138,2412.7,2412.6,0.00621813]
[1725454056640,8.7044,2412.6,2412.5,0.17265885]
[1725454056831,0.41462,2412.0,2411.9,0.41461]
[1725454057028,3.62242,2412.0,2411.9,0.41461]
[1725454060642,0.41464,2411.9,2411.8,0.41463]
[1725454061541,0.41462,2412.0,2411.9,0.41463]
[1725454061741,4.67265413,2412.2,2411.7,2.87621813]
[1725454061742,0.4146,2412.1,2412.0,0.4146]
[1725454061946,4.67265413,2412.2,2412.1,0.41459]
[1725454061947,0.41459,2412.2,2412.1,0.41459]
[1725454062140,0.41459,2412.2,2411.9,2.87]
[1725454062141,0.41457,2412.3,2412.2,0.41456]
[1725454062737,3.25649413,2412.5,2412.4,0.41454]
[1725454062940,0.41452,2412.5,2412.4,0.41454]
[1725454063335,3.25649413,2412.7,2412.6,0.41451]
[1725454063639,3.25649413,2412.7,2412.5,0.41451]
[1725454063834,3.25649413,2412.7,2412.6,0.41451]
[1725454064449,3.67099413,2412.7,2412.6,0.41451]
[1725454064935,12.55069315,2412.9,2412.4,1.03635]
[1725454064936,3.67097413,2412.8,2412.7,0.41449]
[1725454065339,0.41448,2412.8,2412.7,0.41449]
[1725454065750,0.41449,2412.7,2412.6,0.77339]
[1725454066438,0.41449,2412.7,2412.6,0.41449]
[1725454067935,0.41451,2412.6,2412.5,0.79131]
[1725454069650,0.41451,2412.6,2411.3,4.102]
[1725454069651,0.41459,2412.2,2412.1,0.41458]
[1725454071745,0.41457,2412.3,2412.2,0.41456]
[1725454072054,0.41452,2412.6,2412.2,1.03644]
[1725454072259,3.67097413,2412.8,2412.7,0.41449]
[1725454072451,0.41448,2412.8,2412.7,0.41449]
[1725454073745,1.45072,2412.7,2412.6,0.3715]
[1725454073947,7.37349413,2412.9,2412.4,0.41453]
[1725454073948,0.41452,2412.5,2412.4,0.41453]
[1725454074652,0.3838,2412.7,2412.5,0.41451]
[1725454074653,0.41452,2412.6,2412.5,0.41451]
[1725454074849,0.41454,2412.5,2412.4,0.41453]
[1725454077352,0.41452,2412.6,2412.5,0.41451]
[1725454077650,0.4145,2412.7,2412.6,0.41449]
[1725454078056,7.37349413,2412.9,2412.5,1.03631]
[1725454078254,7.78795413,2412.9,2412.8,0.41447]
[1725454079874,7.78795413,2412.9,2412.6,0.41449]
[1725454079875,0.41451,2412.7,2412.6,0.41449]
[1725454080163,0.41451,2412.7,2411.8,0.21584561]
[1725454080164,0.41456,2412.3,2412.2,0.80566]
[1725454080359,1.45096,2412.3,2412.2,0.3911]
[1725454080557,1.03649,2412.1,2411.7,0.00621813]
[1725454080755,0.41462,2412.0,2411.7,0.00621813]
[1725454080957,0.41462,2412.0,2411.9,0.41463]
[1725454081263,0.4146,2412.1,2412.0,0.41461]
[1725454081460,0.79338,2412.2,2412.1,0.41459]
[1725454081664,0.3788,2412.2,2412.1,0.41459]
[1725454081861,7.78712948,2412.4,2412.3,0.41456]
[1725454082055,3.67012948,2412.4,2412.3,0.41456]
[1725454082253,3.25557948,2412.4,2412.3,0.41456]
[1725454082562,4.17804315,2412.6,2412.5,0.41452]
[1725454082563,4.04889948,2412.6,2412.5,0.41452]
[1725454082955,0.41453,2412.5,2412.4,0.41453]
[1725454083170,0.3788,2412.6,2412.5,0.41452]
[1725454083465,3.25557948,2412.7,2412.4,0.3761]
[1725454083760,3.25557948,2412.7,2412.6,0.41451]
[1725454083971,3.67005948,2412.8,2412.7,0.41449]
[1725454084859,0.41448,2412.8,2412.7,0.41449]
[1725454085767,3.67005948,2412.8,2412.7,0.41449]
[1725454085963,0.41449,2412.7,2412.6,0.41449]
[1725454086166,3.67005948,2412.8,2412.7,0.41449]
[1725454086559,0.41448,2412.8,2412.7,0.41449]
[1725454086765,4.04554948,2412.9,2412.8,0.41447]
[1725454087270,0.41448,2412.8,2412.7,0.41448]
[1725454087560,4.04554948,2412.9,2412.8,0.41447]
[1725454087762,3.25557948,2413.0,2412.9,0.41445]
[1725454088155,3.25557948,2413.0,2412.8,0.41446]
[1725454088156,0.41447,2412.9,2412.8,0.41446]
[1725454090072,3.67622761,2413.1,2413.0,0.41444]
[1725454090256,0.00621813,2413.1,2413.0,0.41444]
[1725454090463,0.42063813,2413.1,2413.0,0.41444]
[1725454091364,0.42063813,2413.1,2412.7,3.2078]
[1725454091365,7.35801813,2413.1,2412.7,3.2078]
[1725454091562,0.41452,2412.6,2412.5,0.41451]
[1725454092164,0.79479,2412.7,2412.6,0.41451]
[1725454092359,3.25557948,2413.0,2412.9,0.41445]
[1725454092562,0.00621813,2413.1,2413.0,0.41444]
[1725454093775,0.00621813,2413.1,2413.0,4.55844]
[1725454095569,0.00621813,2413.1,2413.0,0.41444]
[1725454095771,0.42063813,2413.1,2413.0,0.41444]
[1725454095971,0.41447,2412.9,2412.8,0.41445]
[1725454096175,0.4145,2412.7,2412.6,0.4145]
[1725454096477,0.41449,2412.7,2412.6,0.41449]
[1725454096676,4.24396,2412.9,2412.4,3.5753]
[1725454096873,1.03619,2412.8,2412.4,3.5753]
[1725454097073,0.4145,2412.7,2412.6,0.4145]
[1725454097276,0.4145,2412.7,2412.4,3.5753]
[1725454097277,0.41451,2412.6,2412.5,0.41451]
[1725454097882,10.2226,2412.6,2411.8,3.2078]
[1725454098186,1.03645,2412.2,2411.9,0.41463]
[1725454098377,3.25557948,2412.3,2412.1,0.41458]
[1725454098577,0.41458,2412.2,2412.1,0.41458]
[1725454098774,0.41457,2412.3,2412.2,0.41458]
[1725454098987,2.87,2412.4,2411.8,0.3579]
[1725454099189,0.41462,2412.0,2411.8,0.77254]
[1725454099493,4.29202948,2412.2,2411.8,0.3579]
[1725454099795,0.41462,2412.0,2411.8,0.3579]
[1725454099988,0.4146,2412.1,2411.8,0.77254]
[1725454100188,0.41461,2412.0,2411.8,0.3579]
[1725454100791,0.41461,2412.0,2411.7,0.78836813]
[1725454101086,0.3613,2411.9,2411.7,0.78836813]
[1725454102379,0.3613,2411.9,2411.8,0.41464]
[1725454102574,0.41461,2412.0,2411.7,0.78836813]
[1725454103182,0.41461,2412.0,2411.8,0.41464]
[1725454103492,0.41462,2412.0,2411.8,0.41464]
[1725454103976,0.4146,2412.1,2411.7,0.37371813]
[1725454104180,0.80018,2412.2,2412.0,0.41461]
[1725454104381,0.41459,2412.1,2411.8,0.41463]
[1725454104580,0.3856,2412.2,2411.7,0.37371813]
[1725454104780,0.41462,2412.0,2411.8,0.41464]
[1725454107088,0.41464,2411.8,2411.7,0.00621813]
[1725454107281,2.48788,2411.8,2411.7,0.00621813]
[1725454107479,15.88985948,2411.8,2411.7,0.00621813]
[1725454107678,16.43352315,2411.8,2411.7,0.00621813]
[1725454107884,12.63428,2411.8,2411.7,0.00621813]
[1725454108390,7.81296328,2411.8,2411.7,0.00621813]
[1725454108787,4.56104,2411.8,2411.7,0.00621813]
[1725454109089,5.59766,2411.8,2411.7,0.00621813]
[1725454109683,6.63428,2411.8,2411.7,0.00621813]
[1725454109890,5.59766,2411.8,2411.7,0.00621813]
[1725454110279,12.63428,2411.8,2411.7,0.00621813]
[1725454110480,6.63428,2411.8,2411.7,0.00621813]
[1725454110786,5.59766,2411.8,2411.7,0.00621813]
[1725454116392,6.63428,2411.8,2411.7,0.00621813]
[1725454116593,12.63428,2411.8,2411.7,0.00621813]
[1725454116793,0.41476,2411.1,2411.0,0.7287]
[1725454117702,0.41476,2411.1,2411.0,1.14348]
[1725454118995,1.4518,2410.9,2410.8,0.00621813]
[1725454119196,5.3588,2410.9,2410.8,0.00621813]
[1725454119397,15.5068,2410.9,2410.8,0.00621813]
[1725454119601,16.2272,2410.9,2410.8,0.00621813]
[1725454119801,15.1902,2410.9,2410.8,0.00621813]
[1725454120096,14.8285,2410.9,2410.8,0.00621813]
[1725454120699,8.8285,2410.9,2410.8,0.00621813]
[1725454121401,16.0735213,2410.9,2410.8,0.00621813]
[1725454122105,0.41492,2410.2,2410.1,0.209]
[1725454122311,0.41494,2410.1,2409.9,0.41496]
[1725454122804,0.41495,2410.0,2409.9,0.41496]
[1725454123006,0.41495,2410.0,2409.9,0.41497]
[1725454123704,0.41493,2410.2,2410.0,0.41495]
[1725454123909,0.41494,2410.1,2410.0,0.41495]
[1725454124103,0.41494,2410.1,2409.9,0.41496]
[1725454124301,3.91348813,2410.3,2409.7,0.76101813]
[1725454124302,1.03733,2410.2,2409.7,0.76101813]
[1725454124502,0.41495,2410.1,2409.9,0.41497]
[1725454124805,0.41496,2410.0,2409.8,0.41498]
[1725454126307,0.41494,2410.1,2409.7,0.76101813]
[1725454126508,0.41494,2410.1,2409.9,0.41496]
[1725454126699,0.42112813,2410.3,2409.8,1.03748]
[1725454126901,0.00621813,2410.3,2410.2,0.41492]
[1725454127602,0.00621813,2410.3,2410.2,0.78282]
[1725454129213,0.42111813,2410.3,2410.2,0.3679]
[1725454129905,0.41493,2410.2,2410.0,0.41494]
[1725454130207,0.41492,2410.2,2410.1,0.41494]
[1725454130603,0.41493,2410.2,2409.9,3.2078]
[1725454130804,0.41493,2410.2,2410.0,0.41494]
[1725454131013,0.00621813,2410.3,2410.2,0.41492]
[1725454133404,0.42111813,2410.3,2410.2,0.41492]
[1725454133601,0.00621813,2410.3,2410.2,0.41492]
[1725454134115,0.42111813,2410.3,2410.2,0.41492]
[1725454134307,0.41493,2410.2,2409.9,3.2078]
[1725454134513,0.00621813,2410.3,2409.9,3.2078]
[1725454134708,0.41492,2410.2,2410.1,0.41493]
[1725454135610,4.56373,2410.2,2409.9,3.2078]
[1725454135819,1.04348813,2410.3,2410.0,0.41494]
[1725454136015,0.41494,2410.1,2410.0,0.41494]
[1725454137322,3.90731,2410.2,2409.9,3.62276]
[1725454137523,0.41495,2410.0,2409.9,3.62276]
[1725454137811,0.41495,2410.0,2409.9,0.41496]
[1725454138313,0.41497,2409.9,2409.8,0.3908]
[1725454138907,1.45247,2409.8,2409.7,0.39291813]
[1725454139107,4.32247,2409.8,2409.7,0.39291813]
[1725454139916,3.28499,2409.8,2409.7,0.39291813]
[1725454140726,4.32247,2409.8,2409.7,0.39291813]
[1725454140910,0.41499,2409.8,2409.7,0.39291813]
[1725454141116,0.41499,2409.8,2409.7,0.80792813]
[1725454141913,2.87,2410.0,2409.7,0.39291813]
[1725454142113,0.41499,2409.8,2409.7,0.39291813]
[1725454142520,12.71735,2409.8,2409.7,0.00621813]
[1725454142822,19.10475,2409.8,2409.7,0.00621813]
[1725454144413,0.41511,2409.1,2409.0,0.3586]
[1725454144610,0.41516,2408.8,2408.7,0.7545]
[1725454145518,0.37661813,2409.0,2408.7,1.16967]
[1725454145725,0.41515,2408.9,2408.7,1.16967]
[1725454146025,0.41516,2408.8,2408.7,0.7545]
[1725454146215,0.41516,2408.8,2408.7,0.3662]
[1725454146416,0.41519,2408.7,2408.5,0.41935544]
[1725454147020,2.87,2408.8,2408.5,0.00414544]
[1725454147317,0.41518,2408.7,2408.5,0.41935544]
[1725454147522,2.87,2408.8,2408.5,0.00414544]
[1725454147723,2.87,2408.8,2408.5,0.41935544]
[1725454148026,3.28517,2408.8,2408.6,0.41519]
[1725454148513,2.87,2408.8,2408.5,0.00414544]
[1725454148726,3.2078,2408.9,2408.5,0.00414544]
[1725454148916,3.2078,2408.9,2408.7,0.41517]
[1725454148917,3.62295,2408.9,2408.7,0.41517]
[1725454149109,3.62295,2408.9,2408.5,0.00414544]
[1725454149110,3.2078,2408.9,2408.5,0.00414544]
[1725454149328,3.2078,2408.9,2408.8,0.41516]
[1725454149514,0.00621813,2409.0,2408.9,0.41514]
[1725454150419,0.42134813,2409.0,2408.8,0.41515]
[1725454150622,0.00621813,2409.0,2408.9,0.41514]
[1725454151019,0.00621813,2409.0,2408.9,1.453]
[1725454151216,0.00621813,2409.0,2408.9,4.56634]
[1725454151416,2.87,2409.6,2409.5,0.41504]
[1725454151823,6.987,2409.8,2409.2,1.41531]
[1725454152018,6.987,2409.8,2409.2,0.3776]
[1725454152224,0.41501,2409.7,2409.4,0.41504]
[1725454152418,0.41501,2409.7,2409.5,0.41504]
[1725454152624,0.41501,2409.7,2409.2,0.3776]
[1725454153138,0.41501,2409.7,2409.4,0.41505]
[1725454153429,0.41503,2409.6,2409.4,0.41505]
[1725454154335,8.03071813,2409.8,2409.2,0.3776]
[1725454154518,0.41505,2409.5,2409.2,0.3776]
[1725454154722,2.87,2409.6,2409.1,3.2078]
[1725454155023,0.41508,2409.3,2409.0,1.15751]